bitfinex/quotes_ETHUSD_20250424
["timestamp","ask_amount","ask_price","bid_price","bid_amount"]
[1745501914263,5.68997956,1757.5,1757.3,5.23]
[1745501914426,5.68997956,1757.5,1757.0,10.92129531]
[1745501914625,5.68997956,1757.5,1757.0,11.94709853]
[1745501914847,5.6897907,1757.6,1757.1,5.6911856]
[1745501915416,5.68957669,1757.6,1757.0,5.23]
[1745501915524,11.38163987,1757.3,1757.0,5.23]
[1745501915888,5.69072032,1757.3,1757.0,5.23]
[1745501916359,5.69107642,1757.2,1757.0,5.23]
[1745501916741,5.6907617,1757.3,1757.0,5.23]
[1745501917059,5.6907617,1757.3,1756.7,8.69231826]
[1745501917060,5.69093963,1757.2,1756.7,13.92331826]
[1745501917263,5.69093963,1757.2,1756.8,8.69213996]
[1745501917438,5.69093963,1757.2,1756.8,9.21916494]
[1745501917640,5.69076466,1757.3,1756.8,9.21898708]
[1745501917840,11.38159703,1757.3,1756.8,9.21898574]
[1745501918039,5.69094286,1757.2,1756.8,8.69196076]
[1745501918247,5.69076466,1757.3,1756.8,8.69196076]
[1745501918248,5.69076466,1757.3,1756.8,16.54161181]
[1745501918468,5.69076466,1757.3,1756.9,5.69184297]
[1745501918643,5.69078838,1757.3,1756.8,10.84963448]
[1745501919174,5.69078838,1757.3,1756.9,5.69183981]
[1745501919362,5.69078838,1757.3,1756.8,10.84963448]
[1745501919363,5.69078838,1757.3,1756.8,10.84969167]
[1745501919528,4.39977884,1757.2,1756.0,5.02469789]
[1745501919732,5.6927672,1756.7,1756.3,5.232]
[1745501919954,5.69127276,1757.1,1756.3,5.232]
[1745501920271,5.69219524,1756.8,1756.4,9.74376733]
[1745501920440,5.69264664,1756.7,1756.4,0.52721552]
[1745501920627,5.69264664,1756.7,1756.3,5.232]
[1745501921033,5.69274013,1756.7,1756.3,5.232]
[1745501921269,5.69291385,1756.6,1756.3,5.232]
[1745501921862,5.69269976,1756.7,1756.3,5.232]
[1745501922161,5.69235326,1756.8,1756.3,10.92566501]
[1745501922464,5.69235326,1756.8,1756.4,0.52726815]
[1745501922844,5.69250099,1756.7,1756.3,10.92566501]
[1745501923075,6.96961971,1757.1,1756.5,5.69290772]
[1745501923396,5.69184197,1757.0,1756.4,5.69328072]
[1745501923702,6.96951468,1757.1,1756.4,5.69328072]
[1745501923703,5.69219573,1756.8,1756.4,5.69337802]
[1745501924000,1.27821016,1757.1,1756.3,6.89395835]
[1745501924199,5.69166178,1757.0,1756.5,5.69294022]
[1745501924900,5.69166178,1757.0,1756.5,5.69297684]
[1745501925106,5.69166178,1757.0,1756.6,5.6927345]
[1745501925466,7.09083113,1757.2,1756.5,5.69312123]
[1745501925663,5.69143652,1757.1,1756.5,5.69295164]
[1745501925900,5.69173422,1757.0,1756.5,5.69295164]
[1745501926200,5.69184429,1756.9,1756.4,6.38266963]
[1745501926401,5.69219065,1756.8,1756.3,16.61918945]
[1745501926602,5.69219065,1756.8,1756.4,5.69332178]
[1745501926822,5.69219065,1756.8,1756.4,0.5263425]
[1745501926994,5.6924916,1756.7,1756.4,0.5263425]
[1745501927188,5.69371035,1756.4,1755.9,10.92893238]
[1745501927386,0.8303,1756.4,1755.9,5.234]
[1745501927624,6.52391474,1756.4,1755.9,5.234]
[1745501927799,5.69392971,1756.3,1755.9,5.234]
[1745501928198,11.38804006,1756.3,1755.9,5.234]
[1745501928409,6.52387596,1756.4,1755.9,10.92905544]
[1745501928620,6.52387596,1756.4,1755.9,14.2978351]
[1745501928820,0.8303,1756.4,1756.0,5.69460278]
[1745501929007,12.21768668,1756.4,1755.9,14.2978351]
[1745501929325,5.69417717,1756.2,1755.9,5.234]
[1745501929528,5.69402189,1756.3,1755.9,5.234]
[1745501929682,5.69430355,1756.2,1755.9,5.234]
[1745501930619,5.69445286,1756.1,1755.9,5.234]
[1745501930822,5.69391979,1756.3,1755.9,5.234]
[1745501930986,11.3879927,1756.3,1755.9,5.234]
[1745501931183,0.8101,1756.7,1756.2,5.69405504]
[1745501931387,6.50270891,1756.7,1756.1,5.69436405]
[1745501931623,5.69296652,1756.6,1756.1,5.69426629]
[1745501931825,5.69296652,1756.6,1756.1,5.69419099]
[1745501932029,5.69296652,1756.6,1756.2,5.69397658]
[1745501932339,6.50271295,1756.7,1756.1,5.69422924]
[1745501932493,6.50271295,1756.7,1756.1,6.31872218]
[1745501932697,5.69304629,1756.6,1756.1,6.31872218]
[1745501932894,5.69314751,1756.5,1756.1,0.62442292]
[1745501933095,5.69314751,1756.5,1755.9,12.02180772]
[1745501933285,5.6936731,1756.4,1755.9,12.02180772]
[1745501933724,5.6936731,1756.4,1756.0,5.69464224]
[1745501934130,6.50276523,1756.7,1755.9,6.32693588]
[1745501934331,3.0,1757.0,1756.4,5.69343826]
[1745501934332,5.69234671,1756.8,1756.4,5.69343826]
[1745501934505,5.69250377,1756.7,1756.2,5.69395753]
[1745501934835,5.69234671,1756.8,1756.4,5.69342639]
[1745501935035,0.7718,1757.0,1756.3,5.201]
[1745501935223,5.69138557,1757.1,1756.6,5.69260441]
[1745501935413,5.69138557,1757.1,1756.6,11.38520882]
[1745501935732,0.7597,1757.2,1756.5,0.55]
[1745501936032,6.48338033,1757.4,1756.9,5.69184253]
[1745501936217,0.64833803,1757.4,1757.0,5.69151959]
[1745501936417,0.64833803,1757.4,1757.0,5.69142075]
[1745501936591,5.69071783,1757.3,1756.8,5.6919537]
[1745501936796,6.33866527,1757.4,1756.8,5.69202246]
[1745501937035,6.33866527,1757.4,1756.9,5.69170915]
[1745501937333,6.33866527,1757.4,1756.9,5.69168141]
[1745501937633,5.69109057,1757.2,1756.7,10.89333048]
[1745501938103,5.69109057,1757.2,1756.7,10.89331203]
[1745501938434,5.69109057,1757.2,1756.7,10.89325174]
[1745501938628,5.69121138,1757.1,1756.7,5.201]
[1745501938832,0.56912114,1757.0,1756.7,5.201]
[1745501938997,6.52264748,1757.2,1756.7,5.201]
[1745501939202,0.8316,1757.2,1756.7,10.89348618]
[1745501939437,6.52266689,1757.2,1756.7,10.89348618]
[1745501939644,0.63386653,1757.3,1756.8,5.69216757]
[1745501939815,5.6910357,1757.2,1756.7,10.89328472]
[1745501940012,0.63249022,1757.2,1756.8,5.69195365]
[1745501940197,5.69090385,1757.2,1756.6,5.69265885]
[1745501940537,5.69090385,1757.2,1756.4,5.201]
[1745501940538,5.69248042,1756.8,1756.4,5.201]
[1745501940696,5.69291043,1756.6,1756.2,5.69400222]
[1745501940903,5.69266769,1756.7,1756.3,0.52789666]
[1745501941237,0.64792677,1756.7,1756.3,0.52789666]
[1745501941422,5.68985465,1757.6,1756.7,5.6924916]
[1745501941423,5.69032328,1757.4,1756.7,5.6924916]
[1745501941626,5.69032328,1757.4,1756.9,5.69153613]
[1745501941853,5.69058908,1757.3,1756.8,5.72889666]
[1745501942048,6.49198443,1757.1,1756.5,10.89396657]
[1745501942371,12.18330629,1757.1,1756.6,5.69270588]
[1745501942572,0.8006,1757.1,1756.6,0.52890081]
[1745501942723,6.26019319,1757.2,1756.6,6.79452716]
[1745501943067,5.69133147,1757.1,1756.7,0.52890081]
[1745501943226,5.69133147,1757.1,1756.7,6.22125804]
[1745501943424,5.69172366,1757.0,1756.7,0.52890081]
[1745501943652,5.69172366,1757.0,1756.5,5.201]
[1745501943653,5.69199016,1756.9,1756.5,10.89402924]
[1745501943868,0.7721,1756.9,1756.5,5.201]
[1745501944136,5.69226593,1756.8,1756.6,0.52947074]
[1745501944471,1.21562343,1756.8,1756.6,0.52947074]
[1745501944768,0.7721,1756.9,1756.6,5.69263193]
[1745501944921,0.7721,1756.9,1756.5,5.6929282]
[1745501945265,5.69163667,1757.0,1756.6,5.69258959]
[1745501945464,5.69135637,1757.1,1756.7,0.52971308]
[1745501945623,7.04142809,1757.2,1756.7,0.52971308]
[1745501945821,5.69002601,1757.5,1756.8,3.0]
[1745501946021,5.69051454,1757.4,1756.9,5.69167973]
[1745501946237,0.8073,1757.6,1756.9,5.69184358]
[1745501946238,6.49708206,1757.6,1756.9,5.69184358]
[1745501946449,0.8073,1757.6,1757.1,5.69104159]
[1745501946762,5.68993788,1757.5,1757.2,0.52971308]
[1745501947056,0.8073,1757.6,1757.2,6.22043053]
[1745501947255,6.49701019,1757.6,1757.3,0.52971308]
[1745501947662,6.49701019,1757.6,1757.2,5.69081541]
[1745501947866,5.68992887,1757.5,1757.1,10.89198179]
[1745501948028,6.49699774,1757.6,1757.1,10.89198179]
[1745501948229,7.71564044,1757.6,1757.2,6.22016701]
[1745501948772,7.71564044,1757.6,1757.2,5.690855]
[1745501948974,7.71564044,1757.6,1757.1,10.89198858]
[1745501949128,7.71564044,1757.6,1757.1,10.89198676]
[1745501949322,5.68969774,1757.6,1757.2,5.69084908]
[1745501949528,6.5035746,1757.8,1757.3,5.69049597]
[1745501949728,6.5035746,1757.8,1757.3,6.21942561]
[1745501949957,5.6892535,1757.7,1757.3,6.21942561]
[1745501950137,6.5035746,1757.8,1757.4,0.52909183]
[1745501950465,13.41200119,1757.8,1757.4,0.52909183]
[1745501950630,13.41200119,1757.8,1757.3,5.69030931]
[1745501950834,5.68927696,1757.7,1757.3,5.69030931]
[1745501951230,7.72282166,1757.8,1757.2,5.6906577]
[1745501951552,0.8145,1757.8,1757.2,6.24087184]
[1745501951860,0.8136,1758.0,1757.3,11.90919421]
[1745501952162,5.68906696,1757.8,1757.4,0.52854932]
[1745501952848,5.68969809,1757.6,1757.4,0.52854932]
[1745501953251,5.68939305,1757.7,1757.3,6.21894003]
[1745501953460,6.82724204,1757.7,1757.3,6.21894003]
[1745501953639,6.82724204,1757.7,1757.3,5.69039071]
[1745501954042,5.68873112,1757.9,1757.2,3.55]
[1745501954241,5.68873112,1757.9,1757.4,11.37999321]
[1745501954445,6.50195708,1758.0,1757.5,5.199]
[1745501954640,0.8136,1758.0,1757.5,5.199]
[1745501954866,0.8136,1758.0,1757.6,5.68941022]
[1745501955171,6.48043004,1758.3,1757.9,5.68857253]
[1745501955469,5.68773017,1758.2,1757.8,5.68867271]
[1745501955972,5.68773017,1758.2,1757.7,5.68907651]
[1745501956138,5.68773017,1758.2,1757.8,5.68888524]
[1745501956465,0.793,1758.3,1757.9,5.6884511]
[1745501956668,5.687741,1758.2,1757.9,5.199]
[1745501956875,5.68806652,1758.1,1757.9,5.199]
[1745501957076,7.12846007,1758.3,1757.9,5.199]
[1745501957375,5.68710477,1758.4,1758.0,5.68827228]
[1745501957538,5.68710477,1758.4,1757.9,10.88742724]
[1745501957734,6.46854932,1758.5,1758.0,5.68825908]
[1745501957960,0.7817,1758.5,1757.9,10.88745822]
[1745501958150,5.6873217,1758.3,1757.9,5.199]
[1745501958541,5.6873217,1758.3,1757.9,10.88758716]
[1745501958743,5.6873217,1758.3,1757.9,5.199]
[1745501958948,5.68784601,1758.2,1757.9,5.199]
[1745501959172,5.68828213,1758.0,1757.9,5.199]
[1745501959381,5.68828213,1758.0,1756.9,28.2082526]
[1745501959382,5.68850535,1758.0,1757.5,10.88875433]
[1745501959579,5.68847744,1758.0,1757.6,5.68947571]
[1745501959742,5.68847744,1758.0,1757.5,10.89476573]
[1745501959942,6.49946051,1758.1,1757.6,5.68948069]
[1745501960138,5.205,1758.4,1757.8,5.68865088]
[1745501960343,0.7727,1758.3,1757.8,5.68865088]
[1745501960572,5.6876429,1758.2,1757.8,5.68865088]
[1745501960777,5.6876681,1758.2,1757.7,5.6891066]
[1745501960977,5.6884803,1758.0,1757.5,10.89470509]
[1745501961181,6.333914,1758.2,1757.7,5.68894847]
[1745501961343,6.46018915,1758.3,1757.9,5.68858584]
[1745501961675,5.68684587,1758.5,1757.8,5.68892934]
[1745501961974,12.14489199,1758.5,1758.0,5.68799418]
[1745501962177,5.68698948,1758.4,1757.9,10.89340996]
[1745501962354,6.457917,1758.5,1758.0,5.68810049]
[1745501962679,0.8156,1758.8,1758.4,5.68696223]
[1745501962880,0.8156,1758.8,1758.4,5.6868694]
[1745501963378,5.68518391,1759.0,1758.5,0.526775]
[1745501963579,5.68581514,1758.8,1758.5,0.526775]
[1745501963885,5.68555049,1758.9,1758.4,5.68686624]
[1745501964042,5.84029789,1759.1,1758.3,10.89225184]
[1745501964043,6.25450561,1758.8,1758.3,10.89225184]
[1745501964243,6.47498785,1758.7,1758.3,5.205]
[1745501964479,0.56855505,1758.8,1758.3,5.205]
[1745501964793,6.25427221,1758.8,1758.3,16.57906984]
[1745501964989,6.25427221,1758.8,1758.3,12.54990988]
[1745501965654,6.25427221,1758.8,1758.3,10.89220114]
[1745501965855,5.68604138,1758.7,1758.3,5.205]
[1745501966061,5.68604138,1758.7,1758.3,10.89227146]
[1745501966590,0.8269,1758.9,1758.3,5.205]
[1745501966799,0.7994,1759.1,1758.7,5.68585859]
[1745501966944,6.4842386,1759.1,1758.6,5.6861414]
[1745501967144,5.68523373,1759.0,1758.5,6.23640735]
[1745501967359,0.7994,1759.1,1758.4,5.68680752]
[1745501967590,5.68553556,1758.9,1758.4,11.37358301]
[1745501967780,5.68553556,1758.9,1758.4,5.68677549]
[1745501968433,5.68675305,1758.5,1758.4,5.204]
[1745501968633,5.68675305,1758.5,1758.1,10.8918086]
[1745501968828,5.68656344,1758.6,1758.1,12.14680429]
[1745501969020,6.48525266,1758.8,1758.3,5.68706021]
[1745501969217,6.48525266,1758.8,1758.3,5.68701557]
[1745501969519,6.48530828,1758.8,1758.3,5.6871148]
[1745501969726,5.68622726,1758.7,1758.2,5.68748192]
[1745501970027,5.68622726,1758.7,1758.2,11.37499455]
[1745501970226,2.0164868,1758.8,1758.2,5.687494]
[1745501970227,5.68647285,1758.6,1758.2,5.687494]
[1745501970429,0.7994,1758.8,1758.2,3.0]
[1745501970629,6.48521849,1758.8,1758.3,5.68703787]
[1745501970818,0.7994,1758.8,1758.4,6.25564627]
[1745501971016,0.7994,1758.8,1758.4,11.94245057]
[1745501971219,6.48510892,1758.8,1758.5,5.203]
[1745501971534,6.48511272,1758.8,1758.5,5.203]
[1745501971719,0.7994,1758.8,1758.5,5.203]
[1745501972235,6.48533735,1758.8,1758.5,5.203]
[1745501972534,6.48531507,1758.8,1758.5,5.203]
[1745501972835,12.17130575,1758.8,1758.5,5.203]
[1745501973019,5.68616014,1758.7,1758.5,5.203]
[1745501973222,5.6863414,1758.6,1758.5,5.203]
[1745501973729,5.68699545,1758.4,1758.2,5.203]
[1745501973928,5.6873116,1758.3,1758.2,5.203]
[1745501974229,6.48439545,1758.4,1758.2,5.203]
[1745501975036,0.7974,1758.4,1758.2,5.203]
[1745501975596,6.48438946,1758.4,1758.2,5.203]
[1745501975809,0.7974,1758.4,1758.2,5.203]
[1745501976522,6.48461511,1758.4,1758.2,5.203]
[1745501976720,5.6873116,1758.3,1758.2,5.203]
[1745501976933,5.68777053,1758.2,1757.9,5.203]
[1745501977229,5.68828213,1758.0,1757.9,5.203]
[1745501977528,5.68818586,1758.1,1757.9,5.203]
[1745501977828,5.6874913,1758.3,1757.9,5.203]
[1745501977997,6.48456668,1758.4,1757.9,13.73728051]
[1745501978199,12.1718433,1758.4,1757.9,13.73728051]
[1745501978430,6.48456668,1758.4,1757.9,13.73728051]
[1745501978632,0.7594,1758.7,1758.0,11.26267133]
[1745501978804,5.68587427,1758.8,1758.3,6.2371796]
[1745501979004,5.68587427,1758.8,1758.4,5.203]
[1745501979005,5.68615058,1758.7,1758.4,5.203]
[1745501979208,5.68587427,1758.8,1758.5,0.52781508]
[1745501979530,5.68612975,1758.7,1758.5,0.52781508]
[1745501979745,5.68612975,1758.7,1758.4,5.203]
[1745501979895,5.68645479,1758.6,1758.4,5.203]
[1745501980229,5.68666477,1758.5,1758.4,5.203]
[1745501980427,5.68645479,1758.6,1758.4,5.203]
[1745501980629,5.68666477,1758.5,1758.4,5.203]
[1745501980819,5.68701241,1758.4,1758.1,8.203]
[1745501980998,6.45576477,1758.5,1758.2,0.52818329]
[1745501981399,5.68648662,1758.6,1758.3,0.52818329]
[1745501981607,5.68689177,1758.5,1758.2,0.52818329]
[1745501982018,5.68698817,1758.4,1758.3,0.52818329]
[1745501982442,5.6873116,1758.3,1758.2,0.52818329]
[1745501982830,5.68720335,1758.4,1758.2,0.52818329]
[1745501982996,6.47783024,1758.7,1758.2,1.10130162]
[1745501983219,5.68667371,1758.5,1758.2,1.10130162]
[1745501983419,5.68698817,1758.4,1758.3,0.52818329]
[1745501983815,5.6873116,1758.3,1758.2,0.52818329]
[1745501984458,5.68698817,1758.4,1758.2,0.52818329]
[1745501984641,5.6873116,1758.3,1758.2,0.52818329]
[1745501984836,5.6873116,1758.3,1758.1,5.203]
[1745501985040,5.68650702,1758.6,1758.1,5.7233]
[1745501985237,5.68692004,1758.5,1758.2,0.52962307]
[1745501985420,5.9546,1759.2,1758.3,0.55]
[1745501985621,5.68632712,1758.7,1758.4,0.52962307]
[1745501986259,5.68632712,1758.7,1758.5,0.52962307]
[1745501986558,11.3718267,1758.8,1758.5,0.52962307]
[1745501986758,5.68593124,1758.8,1758.6,0.52962307]
[1745501986960,3.56844724,1759.1,1758.6,0.52962307]
[1745501987260,11.3713629,1758.9,1758.7,0.52962307]
[1745501987462,5.68569479,1758.8,1758.7,0.52962307]
[1745501988728,6.49739479,1758.8,1758.7,0.52962307]
[1745501989258,5.68569479,1758.8,1758.7,0.52962307]
[1745501990555,5.6863414,1758.6,1758.5,5.202]
[1745501991158,5.68583749,1758.8,1758.5,5.73150946]
[1745501991457,5.68617756,1758.7,1758.6,0.52950946]
[1745501992432,5.68693561,1758.5,1758.2,5.19]
[1745501993040,5.68639237,1758.6,1758.2,10.8774966]
[1745501993344,5.68605202,1758.7,1758.3,0.52998416]
[1745501993540,0.8175,1758.9,1758.4,0.52998416]
[1745501993746,5.68639393,1758.6,1758.4,0.52998416]
[1745501994060,5.68639393,1758.6,1758.5,0.52998416]
[1745501994462,5.68622153,1758.7,1758.5,0.52998416]
[1745501994665,11.37247729,1758.7,1758.5,0.52998416]
[1745501994840,5.68638093,1758.6,1758.2,10.87741762]
[1745501995041,5.68638093,1758.6,1758.2,10.87740197]
[1745501995383,5.68638093,1758.6,1758.3,0.52990614]
[1745501996078,5.68638093,1758.6,1758.4,0.52990614]
[1745501996641,5.68622153,1758.7,1758.5,0.52990614]
[1745501996979,5.6863414,1758.6,1758.5,0.52990614]
[1745501997478,6.82359769,1758.6,1758.5,0.52990614]
[1745501999957,12.51025697,1758.6,1758.2,5.19]
[1745502000279,0.7698,1758.5,1758.1,5.68764463]
[1745502000462,6.45599259,1758.7,1758.2,6.21816674]
[1745502000795,6.45584662,1758.7,1758.3,5.68711559]
[1745502000945,12.14211436,1758.7,1758.4,0.53055189]
[1745502001280,6.45584662,1758.7,1758.4,0.53055189]
[1745502001479,12.1421796,1758.7,1758.4,0.53055189]
[1745502001648,5.68655189,1758.6,1758.4,0.53055189]
[1745502001983,6.45584662,1758.7,1758.5,0.53055189]
[1745502002289,5.6863414,1758.6,1758.5,0.53055189]
[1745502002581,5.68582316,1758.8,1758.6,0.53055189]
[1745502002782,5.68628613,1758.7,1758.5,0.53055189]
[1745502003100,5.68627722,1758.7,1758.6,0.53055189]
[1745502003384,6.49107722,1758.7,1758.6,0.53055189]
[1745502003684,5.68749733,1758.3,1757.8,28.4446969]
[1745502003841,5.68773691,1758.2,1757.8,28.4446969]
[1745502004585,5.68773691,1758.2,1757.9,0.53067809]
[1745502004756,5.68748473,1758.3,1758.0,0.53067809]
[1745502005281,5.68748473,1758.3,1757.9,5.68858739]
[1745502005282,5.68748473,1758.3,1758.1,0.53067809]
[1745502005487,5.68763508,1758.2,1758.1,0.53067809]
[1745502005730,6.90543007,1758.3,1758.1,0.53067809]
[1745502005874,5.68763508,1758.2,1758.1,0.53067809]
[1745502006307,6.46283508,1758.2,1758.1,0.53067809]
[1745502006480,6.46348213,1758.0,1757.9,0.53067809]
[1745502006682,14.48818002,1758.0,1757.9,0.53067809]
[1745502006887,9.46348213,1758.0,1757.9,0.53067809]
[1745502007218,9.46348213,1758.0,1757.8,0.5]
[1745502007219,5.68860572,1757.9,1757.8,0.5]
[1745502008296,6.46361799,1758.0,1757.8,0.5]
[1745502008514,8.26251779,1758.0,1757.8,0.5]
[1745502008809,5.68860572,1757.9,1757.8,0.5]
[1745502010179,2.5740998,1758.0,1757.8,0.5]
[1745502010497,6.46363596,1758.0,1757.8,0.5]
[1745502010902,7.72627764,1758.3,1757.8,6.18868977]
[1745502011099,5.68808211,1758.1,1757.8,0.5]
[1745502011412,5.68842979,1758.0,1757.8,0.5]
[1745502011979,5.68860572,1757.9,1757.8,0.5]
[1745502012212,8.20395106,1757.9,1757.8,0.5]
[1745502013246,5.69100796,1757.2,1756.7,10.88326096]
[1745502013444,5.69100796,1757.2,1756.8,5.69214893]
[1745502013649,5.69100796,1757.2,1756.9,0.52947602]
[1745502014228,5.69100796,1757.2,1756.8,5.69214893]
[1745502014427,5.69100796,1757.2,1756.8,7.40468992]
[1745502014945,6.51981859,1757.2,1756.8,1.71254099]
[1745502015156,5.69091859,1757.2,1756.8,7.40468235]
[1745502015464,5.69138188,1757.1,1756.8,1.71254099]
[1745502015641,0.8289,1757.4,1756.5,5.69297395]
[1745502015846,5.69183559,1757.0,1756.5,5.69297395]
[1745502016241,5.69220318,1756.8,1756.4,5.192]
[1745502016436,5.69220318,1756.8,1756.4,5.7112]
[1745502016955,5.69256356,1756.7,1756.4,0.5192]
[1745502017126,6.52304237,1757.0,1756.1,5.192]
[1745502017127,5.69327592,1756.5,1756.1,5.192]
[1745502017935,6.48497206,1756.6,1756.1,5.192]
[1745502018137,6.4842453,1756.8,1756.2,0.5192]
[1745502018314,5.69205202,1756.9,1756.4,5.69334979]
[1745502018676,5.69205202,1756.9,1756.4,5.69323583]
[1745502018978,5.69218026,1756.8,1756.4,5.69328446]
[1745502019754,0.792,1757.0,1756.5,5.69293373]
[1745502019955,5.69184748,1756.9,1756.6,0.56929337]
[1745502020552,5.691674,1757.0,1756.6,0.56929337]
[1745502020757,5.691674,1757.0,1756.6,6.26209334]
[1745502021064,11.38282489,1757.1,1756.6,6.26209334]
[1745502021265,5.69136045,1757.1,1756.6,6.26187742]
[1745502021425,11.3828339,1757.1,1756.6,6.26187742]
[1745502021621,5.69110269,1757.2,1756.7,0.62618774]
[1745502021925,5.69151575,1757.1,1756.7,0.62618774]
[1745502022126,5.69154178,1757.0,1756.7,0.62618774]
[1745502022361,6.51925366,1757.3,1756.7,0.62618774]
[1745502022571,5.19286759,1756.6,1756.2,5.187]
[1745502022856,5.69316081,1756.5,1756.2,3.0]
[1745502023060,6.00186759,1756.6,1756.2,8.69410314]
[1745502023863,5.69267592,1756.7,1756.3,5.693782]
[1745502024071,5.69267592,1756.7,1756.2,8.69410314]
[1745502024072,5.693012,1756.6,1756.2,8.69410314]
[1745502024227,6.47317592,1756.7,1756.2,10.13271839]
[1745502024546,6.47317592,1756.7,1756.3,5.69367412]
[1745502024747,5.69283227,1756.6,1756.2,10.13271839]
[1745502024955,6.47317592,1756.7,1756.2,15.8266132]
[1745502025160,5.69210555,1756.9,1756.3,0.55]
[1745502025469,5.69232002,1756.8,1756.4,5.69329405]
[1745502026142,5.69184358,1756.9,1756.4,5.69322622]
[1745502026327,5.69184358,1756.9,1756.5,5.69304591]
[1745502027261,0.8089,1757.0,1756.4,5.6934639]
[1745502027447,11.6825858,1757.6,1756.9,5.69182751]
[1745502027762,6.4959155,1757.2,1756.7,5.69224571]
[1745502027957,6.4959155,1757.2,1756.8,5.69207046]
[1745502028159,5.69182346,1757.0,1756.6,5.188]
[1745502028358,5.69136203,1757.1,1756.7,5.69235818]
[1745502028563,5.69136203,1757.1,1756.7,5.69236933]
[1745502029022,6.49600054,1757.2,1756.7,7.06179801]
[1745502029544,11.38266453,1757.1,1756.7,1.36942868]
[1745502029729,5.69119962,1757.1,1756.7,5.69246596]
[1745502029928,5.69119832,1757.1,1756.7,5.69246596]
[1745502030128,6.49601372,1757.2,1756.8,5.69198378]
[1745502030867,6.49601372,1757.2,1756.8,5.69196122]
[1745502031350,6.49588454,1757.2,1756.8,5.69196122]
[1745502031553,0.805,1757.2,1756.8,5.69196122]
[1745502031727,6.49593226,1757.2,1756.9,5.69184264]
[1745502031937,6.49593226,1757.2,1756.8,5.69196122]
[1745502032143,12.18710724,1757.2,1756.8,5.69196122]
[1745502032339,2.02371072,1757.2,1756.6,5.188]
[1745502032528,5.69194958,1756.9,1756.6,5.188]
[1745502032731,5.69165512,1757.0,1756.6,10.88063526]
[1745502032958,5.69135621,1757.1,1756.6,10.88063526]
[1745502033137,5.69156685,1757.0,1756.6,10.88063526]
[1745502033354,6.49598666,1757.2,1756.8,5.69203293]
[1745502033533,8.01465839,1757.2,1756.8,5.69203293]
[1745502034269,1.51867173,1757.2,1756.7,0.55]
[1745502034575,6.19259287,1757.5,1756.9,5.69162878]
[1745502034576,5.69064172,1757.3,1756.9,5.69162878]
[1745502035531,5.69131033,1757.1,1756.7,5.69230776]
[1745502035756,6.50483133,1757.1,1756.7,5.69230776]
[1745502036260,6.50483133,1757.1,1756.6,16.57337508]
[1745502036456,6.50483133,1757.1,1756.8,0.52964899]
[1745502036687,7.72442146,1757.1,1756.8,0.52964899]
[1745502036854,5.69152812,1757.0,1756.6,10.88058997]
[1745502037051,5.69152812,1757.0,1756.6,5.188]
[1745502037259,5.69225771,1756.8,1756.6,5.188]
[1745502037594,5.69225771,1756.8,1756.4,5.69325937]
[1745502037891,6.44490508,1756.7,1756.5,0.53019777]
[1745502038216,6.44491368,1756.7,1756.3,17.6986279]
[1745502038365,6.44491368,1756.7,1756.4,5.69342588]
[1745502038557,5.69237245,1756.8,1756.4,6.22382234]
[1745502038757,5.69237245,1756.8,1756.4,11.91710855]
[1745502038957,6.44433891,1756.9,1756.6,5.6927845]
[1745502039153,7.73449117,1757.1,1756.6,5.69264971]
[1745502039416,5.69157559,1757.0,1756.6,5.69258579]
[1745502039566,6.51484534,1757.1,1756.7,6.2228661]
[1745502039770,5.69153051,1757.0,1756.7,0.53039646]
[1745502039972,5.69200704,1756.9,1756.8,0.53039646]
[1745502040364,6.8303608,1756.9,1756.8,0.53039646]
[1745502040700,5.6924916,1756.7,1756.6,0.53039646]
[1745502040906,5.69259477,1756.7,1756.3,10.88152217]
[1745502041496,5.69259477,1756.7,1756.4,0.5309999]
[1745502041859,6.46095129,1756.8,1756.4,6.22442438]
[1745502042054,6.45044891,1757.0,1756.5,6.22395475]
[1745502042292,5.69187718,1756.9,1756.5,0.5309999]
[1745502042594,5.69187718,1756.9,1756.6,0.5309999]
[1745502042758,5.69220487,1756.8,1756.6,0.5309999]
[1745502042960,5.69187718,1756.9,1756.6,0.5309999]
[1745502043341,5.69135506,1757.1,1756.7,0.5309999]
[1745502043528,5.691621,1757.0,1756.7,1.15337171]
[1745502043704,5.69152829,1757.0,1756.7,6.34237171]
[1745502043901,5.69152829,1757.0,1756.8,0.5309999]
[1745502044102,0.8254,1756.8,1755.4,0.8680739]
[1745502044339,3.76915283,1756.9,1755.4,6.22753858]
[1745502044340,5.6952298,1755.9,1755.4,6.22753858]
[1745502044545,5.69531809,1755.9,1755.5,0.62275386]
[1745502044744,0.8254,1756.1,1755.5,3.62275386]
[1745502044745,5.69494412,1756.0,1755.5,3.62275386]
[1745502044913,5.69520838,1755.9,1755.5,9.31913488]
[1745502045120,5.69520838,1755.9,1755.5,3.62275386]
[1745502045455,5.69587548,1755.7,1755.4,0.531]
[1745502046156,5.69541506,1755.8,1755.4,0.531]
[1745502046305,5.69500366,1756.0,1755.5,5.69624621]
[1745502046510,5.69527627,1755.9,1755.4,6.22756599]
[1745502046711,5.69527627,1755.9,1755.5,0.6227566]
[1745502047106,5.69527627,1755.9,1755.5,6.3190715]
[1745502047316,5.69491203,1756.0,1755.5,6.3190715]
[1745502047507,5.69510724,1755.9,1755.5,6.3190715]
[1745502047711,5.69510724,1755.9,1755.5,0.6227566]
[1745502047955,5.69535922,1755.9,1755.5,0.6227566]
[1745502048346,5.69535922,1755.9,1755.5,6.31912851]
[1745502049060,5.69535922,1755.9,1755.5,0.6227566]
[1745502049837,5.69531488,1755.9,1755.4,6.22770042]
[1745502050038,5.69547801,1755.8,1755.4,6.22770042]
[1745502050280,0.8254,1756.1,1755.4,0.531]
[1745502050431,5.6959859,1755.7,1755.4,0.531]
[1745502050771,5.69594158,1755.7,1755.4,0.531]
[1745502050943,11.39194559,1755.7,1755.4,0.531]
[1745502051142,9.52007496,1756.1,1755.5,5.6963216]
[1745502051354,5.69480818,1756.0,1755.6,5.69599158]
[1745502051558,5.69540628,1755.9,1755.4,6.22756911]
[1745502051770,5.69540628,1755.9,1755.4,6.22748986]
[1745502051968,5.69540008,1755.9,1755.4,6.22748986]
[1745502052154,5.69540008,1755.9,1755.4,6.22747576]
[1745502052466,5.69539573,1755.9,1755.4,7.20532899]
[1745502052980,5.69539573,1755.9,1755.4,1.50874758]
[1745502052981,5.69565974,1755.8,1755.4,1.50874758]
[1745502053135,5.69565974,1755.8,1755.4,7.20542689]
[1745502053880,5.69604811,1755.7,1755.4,1.50874758]
[1745502054040,7.97457043,1756.1,1755.4,0.531]
[1745502054041,5.69553762,1755.8,1755.4,0.531]
[1745502054245,5.69553762,1755.8,1755.4,6.22759702]